bitfinex-derivatives/quotes_BNBF0:USTF0_20250309
["timestamp","ask_amount","ask_price","bid_price","bid_amount"]
[1741491119659,0.29622694,588.14,586.9,5.39777355]
[1741491119859,0.3127647,588.13,586.9,5.39777355]
[1741491120261,0.29622694,588.14,586.9,5.39777355]
[1741491120760,0.31274063,588.13,586.9,5.39777355]
[1741491121157,0.31274063,588.17,586.9,5.39777355]
[1741491121353,0.31274063,588.16,586.9,5.39777355]
[1741491121555,0.31274063,588.17,586.9,5.39777355]
[1741491121759,0.34003196,588.18,586.9,5.39777355]
[1741491122058,0.31272833,588.17,586.9,5.39777355]
[1741491122255,0.60890863,588.17,586.9,5.39777355]
[1741491122458,0.31272833,588.16,586.9,5.39777355]
[1741491122658,0.31273224,588.15,586.9,5.39777355]
[1741491122861,0.31273224,588.16,586.9,5.39777355]
[1741491124156,0.34003196,588.18,586.9,5.39777355]
[1741491124157,0.31273224,588.17,586.9,5.39777355]
[1741491124357,0.29620551,588.15,586.9,5.39777355]
[1741491124561,0.31273224,588.14,586.9,5.39777355]
[1741491127157,0.31273224,588.17,586.9,5.39777355]
[1741491127360,0.60894783,588.13,586.9,5.39777355]
[1741491127563,0.31273224,588.12,586.9,5.39777355]
[1741491130364,0.31273224,588.11,586.9,5.39777355]
[1741491130562,0.31273224,588.13,586.9,5.39777355]
[1741491131265,0.29622442,588.12,586.9,5.39777355]
[1741491131460,0.31273224,588.11,586.9,5.39777355]
[1741491133162,0.31273224,588.13,586.9,5.39777355]
[1741491133368,0.29622694,588.1,586.9,5.39777355]
[1741491133759,0.31273224,588.09,586.9,5.39777355]
[1741491136369,0.6089617,588.08,586.9,5.39777355]
[1741491136568,0.31273224,588.07,586.9,5.39777355]
[1741491138074,0.29622946,588.08,586.9,5.39777355]
[1741491139076,1.60955273,588.18,586.9,5.39777355]
[1741491139276,0.31279529,588.17,586.9,5.39777355]
[1741491140174,0.29623955,588.16,586.9,5.39777355]
[1741491140378,0.312817,588.15,586.9,5.39777355]
[1741491141877,1.26952077,588.07,586.9,5.39777355]
[1741491142072,0.31279746,588.06,586.9,5.39777355]
[1741491145382,0.31279746,588.13,586.9,5.39777355]
[1741491146280,0.29624459,588.12,586.9,5.39777355]
[1741491146578,0.31279746,588.11,586.9,5.39777355]
[1741491147688,0.31280536,588.1,586.9,5.39777355]
[1741491147995,0.31280536,588.09,586.9,5.39777355]
[1741491148212,0.31280536,588.15,586.9,5.39777355]
[1741491148422,0.31280536,588.14,586.9,5.39777355]
[1741491148596,0.31280536,588.15,586.9,5.39777355]
[1741491148806,0.31280536,588.14,586.9,5.39777355]
[1741491149004,0.31280536,588.15,586.9,5.39777355]
[1741491149213,0.60904743,588.13,586.9,5.39777355]
[1741491149407,0.31280509,588.12,586.9,5.39777355]
[1741491151291,0.31280509,588.11,586.9,5.39777355]
[1741491151494,0.31280509,588.1,586.9,5.39777355]
[1741491151690,0.31280509,588.09,586.9,5.39777355]
[1741491151987,1.60955273,588.18,586.9,5.39777355]
[1741491151988,0.31280509,588.08,586.9,5.39777355]
[1741491152190,0.29625468,588.08,586.9,5.39777355]
[1741491152385,0.31280509,588.07,586.9,5.39777355]
[1741491152987,0.29625468,588.08,586.9,5.39777355]
[1741491153190,0.31285845,588.07,586.9,5.39777355]
[1741491154191,0.31285845,588.1,586.9,5.39777355]
[1741491154400,1.26952077,587.98,586.9,5.39777355]
[1741491154897,0.31286823,587.97,586.9,5.39777355]
[1741491155096,0.60916326,587.97,586.9,5.39777355]
[1741491155292,0.31286823,587.96,586.9,5.39777355]
[1741491156794,0.31289799,587.95,586.9,5.39777355]
[1741491156992,0.31289799,587.94,586.9,5.39777355]
[1741491157194,0.31289799,588.02,586.9,5.39777355]
[1741491157396,0.31289799,588.01,586.9,5.39777355]
[1741491157598,0.31289799,588.02,586.9,5.39777355]
[1741491157797,0.29630386,588.0,586.9,5.39777355]
[1741491158000,0.31289799,587.99,586.9,5.39777355]
[1741491160302,0.31289799,587.98,586.9,5.39777355]
[1741491160596,0.31289799,587.97,586.9,5.39777355]
[1741491163404,0.29631017,587.96,586.9,5.39777355]
[1741491163606,0.31289799,587.95,586.9,5.39777355]
[1741491164200,0.31289756,587.94,586.9,5.39777355]
[1741491164403,0.31289756,587.93,586.9,5.39777355]
[1741491164600,0.31289756,587.95,586.9,5.39777355]
[1741491164805,0.31289756,587.94,586.9,5.39777355]
[1741491165002,0.31289756,587.93,586.9,5.39777355]
[1741491165202,0.31289756,587.95,586.9,5.39777355]
[1741491165401,0.31289756,587.94,586.9,5.39777355]
[1741491165606,0.31289756,587.93,586.9,5.39777355]
[1741491165806,0.31289756,587.92,586.9,5.39777355]
[1741491166006,0.31289756,587.95,586.9,5.39777355]
[1741491166406,1.26952077,588.12,586.9,5.39777355]
[1741491166407,0.31289756,588.11,586.9,5.39777355]
[1741491166608,0.65297577,588.1,586.9,5.39777355]
[1741491166807,0.65298156,588.09,586.9,5.39777355]
[1741491167004,0.31289756,588.08,586.9,5.39777355]
[1741491167404,0.60919386,588.08,586.9,5.39777355]
[1741491167611,0.31289756,588.07,586.9,5.39777355]
[1741491169507,0.31289756,588.08,586.9,5.39777355]
[1741491169707,0.31289756,588.07,586.9,5.39777355]
[1741491169910,0.31289756,588.08,586.9,5.39777355]
[1741491170211,0.2962963,588.06,586.9,5.39777355]
[1741491170510,0.31289756,588.05,586.9,5.39777355]
[1741491172315,0.31289756,588.08,586.9,5.39777355]
[1741491172510,0.31289756,588.07,586.9,5.39777355]
[1741491172710,0.31289756,588.08,586.9,5.39777355]
[1741491172907,0.31289756,588.07,586.9,5.39777355]
[1741491173109,0.31289756,588.06,586.9,5.39777355]
[1741491173309,0.31289079,588.05,586.9,5.39777355]
[1741491173915,0.2962963,588.06,586.9,5.39777355]
[1741491174111,0.3129,588.05,586.9,5.39777355]
[1741491175318,0.3129,588.04,586.9,5.39777355]
[1741491175519,0.3129,588.03,586.9,5.39777355]
[1741491175717,0.3129,588.08,586.9,5.39777355]
[1741491175913,0.3129,588.07,586.9,5.39777355]
[1741491176116,0.3129,588.08,586.9,5.39777355]
[1741491176316,0.6091963,588.07,586.9,5.39777355]
[1741491176516,0.3129,588.06,586.9,5.39777355]
[1741491177219,1.58242077,588.06,586.9,5.39777355]
[1741491177416,0.3129,588.05,586.9,5.39777355]
[1741491177615,0.31289854,588.04,586.9,5.39777355]
[1741491177815,0.31289854,588.05,586.9,5.39777355]
[1741491178016,0.31289854,588.04,586.9,5.39777355]
[1741491178214,1.26952077,588.06,586.9,5.39777355]
[1741491178215,0.60919862,588.03,586.9,5.39777355]
[1741491178414,0.31289854,588.02,586.9,5.39777355]
[1741491181420,0.31289854,588.01,586.9,5.39777355]
[1741491181620,0.31289854,588.05,586.9,5.39777355]
[1741491182319,0.29628747,588.04,586.9,5.39777355]
[1741491182719,0.31289854,588.03,586.9,5.39777355]
[1741491183719,1.58241931,588.03,586.9,5.39777355]
[1741491183919,0.31289854,588.02,586.9,5.39777355]
[1741491185421,0.29630386,588.01,586.9,5.39777355]
[1741491185623,0.31289854,588.0,586.9,5.39777355]
[1741491185921,1.26952077,587.91,586.9,5.39777355]
[1741491186121,0.31289854,587.9,586.9,5.39777355]
[1741491187116,1.26952077,587.91,586.9,5.39777355]
[1741491187320,0.3129024,587.9,586.9,5.39777355]
[1741491188521,1.56583977,587.89,586.9,5.39777355]
[1741491188718,0.3129024,587.88,586.9,5.39777355]
[1741491190717,0.29630134,587.87,586.9,5.39777355]
[1741491190923,0.31288539,587.86,586.9,5.39777355]
[1741491192827,0.31288849,587.85,586.9,5.39777355]
[1741491193122,0.31288849,587.86,586.9,5.39777355]
[1741491193327,0.29632405,587.84,586.9,5.39777355]
[1741491193627,0.31288849,587.83,586.9,5.39777355]
[1741491196324,0.29632783,587.82,586.9,5.39777355]
[1741491197632,0.31287869,587.81,586.9,5.39777355]
[1741491199531,1.26952077,587.9,586.9,5.39777355]
[1741491199532,0.60920905,587.8,586.9,5.39777355]
[1741491199732,0.31287869,587.79,586.9,5.39777355]
[1741491201936,0.31289107,587.78,586.9,5.39777355]
[1741491202138,0.31289107,587.79,586.9,5.39777355]
[1741491202334,0.60922395,587.78,586.9,5.39777355]
[1741491202540,0.31289107,587.77,586.9,5.39777355]
[1741491203637,0.31289513,587.76,586.9,5.39777355]
[1741491203838,0.31289513,587.77,586.9,5.39777355]
[1741491204035,0.31289513,587.76,586.9,5.39777355]
[1741491204239,0.31289513,587.77,586.9,5.39777355]
[1741491204441,0.29633288,587.78,586.9,5.39777355]
[1741491204936,1.26952077,587.81,586.9,5.39777355]
[1741491205141,0.31286635,587.8,586.9,5.39777355]
[1741491205336,0.29631017,587.77,586.9,5.39777355]
[1741491208141,1.26952077,587.87,586.9,5.39777355]
[1741491208539,0.29630386,587.76,586.9,5.39777355]
[1741491208743,1.26952077,587.87,586.9,5.39777355]
[1741491209346,0.29628621,587.86,586.9,5.39777355]
[1741491211243,1.26952077,588.04,586.9,5.39777355]
[1741491211447,0.29626477,587.85,586.9,5.39777355]
[1741491211644,1.26952077,588.04,586.9,5.39777355]
[1741491211845,0.31284087,588.03,586.9,5.39777355]
[1741491212347,0.29626477,588.02,586.9,5.39777355]
[1741491212548,0.31284087,588.01,586.9,5.39777355]
[1741491214247,0.31284087,588.0,586.9,5.39777355]
[1741491214448,0.29626477,588.0,586.9,5.39777355]
[1741491214645,0.31284087,587.99,586.9,5.39777355]
[1741491215348,0.29626477,588.0,586.9,5.39777355]
[1741491215550,0.31281167,587.99,586.9,5.39777355]
[1741491217250,0.31281167,587.98,586.9,5.39777355]
[1741491217445,0.31281167,588.08,586.9,5.39777355]
[1741491217649,0.31281167,588.07,586.9,5.39777355]
[1741491217952,0.31281167,588.06,586.9,5.39777355]
[1741491218452,0.29625342,588.05,586.9,5.39777355]
[1741491220053,0.340084,588.09,586.9,5.39777355]
[1741491220455,0.29625342,588.04,586.9,5.39777355]
[1741491223058,0.340084,588.09,586.9,5.39777355]
[1741491223357,0.29625342,588.03,586.9,5.39777355]
[1741491225960,0.340084,588.09,586.9,5.39777355]
[1741491227365,0.29620677,588.08,586.9,5.39777355]
[1741491227967,0.31281614,588.07,586.9,5.39777355]
[1741491228268,0.29620677,588.08,586.9,5.39777355]
[1741491229166,0.340084,588.09,586.9,5.39777355]
[1741491229367,0.31280909,588.08,586.9,5.39777355]
[1741491230260,0.29625342,588.07,586.9,5.39777355]
[1741491231665,0.3128137,588.06,586.9,5.39777355]
[1741491232567,0.3128137,588.08,586.9,5.39777355]
[1741491232867,0.31281301,588.07,586.9,5.39777355]
[1741491233064,0.31281301,588.06,586.9,5.39777355]
[1741491233265,0.29625342,588.06,586.9,5.39777355]
[1741491234266,0.3128173,588.05,586.9,5.39777355]
[1741491235368,0.340084,588.09,586.9,5.39777355]
[1741491235868,0.31281306,588.08,586.9,5.39777355]
[1741491236266,0.29625342,588.07,586.9,5.39777355]
[1741491236463,0.31281306,588.06,586.9,5.39777355]
[1741491238270,0.31281306,588.08,586.9,5.39777355]
[1741491238469,0.31281306,588.05,586.9,5.39777355]
[1741491238770,0.31281306,588.04,586.9,5.39777355]
[1741491238965,0.31281306,588.08,586.9,5.39777355]
[1741491239168,0.31281306,588.07,586.9,5.39777355]
[1741491239369,0.29625089,588.03,586.9,5.39777355]
[1741491241266,0.340084,588.09,586.9,5.39777355]
[1741491242068,0.29622568,588.08,586.9,5.39777355]
[1741491244272,0.340084,588.09,586.9,5.39777355]
[1741491245170,0.29620424,588.08,586.9,5.39777355]
[1741491247173,0.340084,588.09,586.9,5.39777355]
[1741491247576,0.29624837,588.07,586.9,5.39777355]
[1741491250175,0.31280198,588.06,586.9,5.39777355]
[1741491250375,0.31280198,588.08,586.9,5.39777355]
[1741491250675,0.31280198,588.07,586.9,5.39777355]
[1741491250874,0.31280198,588.08,586.9,5.39777355]
[1741491251469,0.29624837,588.07,586.9,5.39777355]
[1741491251670,0.31280198,588.06,586.9,5.39777355]
[1741491253576,0.29625089,588.05,586.9,5.39777355]
[1741491253769,0.60905319,588.05,586.9,5.39777355]
[1741491253970,0.3128023,588.04,586.9,5.39777355]
[1741491254772,0.29625089,588.05,586.9,5.39777355]
[1741491254978,0.3128023,588.04,586.9,5.39777355]
[1741491256373,0.3128023,588.08,586.9,5.39777355]
[1741491256574,0.31280198,588.07,586.9,5.39777355]
[1741491256880,0.31280198,588.06,586.9,5.39777355]
[1741491257079,0.31280198,588.08,586.9,5.39777355]
[1741491257285,0.31280198,588.07,586.9,5.39777355]
[1741491257580,0.29624837,588.05,586.9,5.39777355]
[1741491257878,0.31280198,588.04,586.9,5.39777355]
[1741491259979,1.26952077,587.92,586.9,5.39777355]
[1741491260180,0.31280198,587.91,586.9,5.39777355]
[1741491260386,1.26952077,587.92,586.9,5.39777355]
[1741491260581,0.31281794,587.91,586.9,5.39777355]
[1741491262087,1.26952077,587.92,586.9,5.39777355]
[1741491262286,0.31281639,587.91,586.9,5.39777355]
[1741491263486,0.29627738,587.9,586.9,5.39777355]
[1741491263685,0.31281639,587.89,586.9,5.39777355]
[1741491263887,0.29627738,587.9,586.9,5.39777355]
[1741491264079,0.31281515,587.89,586.9,5.39777355]
[1741491264284,0.29627738,587.9,586.9,5.39777355]
[1741491264483,0.31281103,587.89,586.9,5.39777355]
[1741491265286,0.2962799,587.88,586.9,5.39777355]
[1741491268081,1.26952077,587.95,586.9,5.39777355]
[1741491268286,0.31281514,587.94,586.9,5.39777355]
[1741491269490,0.29627359,587.93,586.9,5.39777355]
[1741491271089,1.26952077,588.0,586.9,5.39777355]
[1741491271486,0.31280135,587.99,586.9,5.39777355]
[1741491272086,0.29625972,587.98,586.9,5.39777355]
[1741491273985,0.31280206,587.97,586.9,5.39777355]
[1741491274387,0.29626224,587.96,586.9,5.39777355]
[1741491277094,1.26952077,588.07,586.9,5.39777355]
[1741491277289,0.31280175,588.06,586.9,5.39777355]
[1741491277896,0.29625089,588.05,586.9,5.39777355]
[1741491278094,0.31280175,588.04,586.9,5.39777355]
[1741491278590,0.29625089,588.05,586.9,5.39777355]
[1741491278795,0.31280351,588.04,586.9,5.39777355]
[1741491279094,0.31280357,588.03,586.9,5.39777355]
[1741491279294,0.31280357,588.02,586.9,5.39777355]
[1741491279590,0.31280247,588.01,586.9,5.39777355]
[1741491279794,1.26952077,588.04,586.9,5.39777355]
[1741491279795,0.31280247,588.03,586.9,5.39777355]
[1741491280094,0.31280247,588.02,586.9,5.39777355]
[1741491280294,0.31280247,588.01,586.9,5.39777355]
[1741491280495,0.31280247,588.03,586.9,5.39777355]
[1741491280696,0.31280247,588.02,586.9,5.39777355]
[1741491280896,0.31280247,588.03,586.9,5.39777355]
[1741491283493,0.29625468,588.02,586.9,5.39777355]
[1741491283698,0.31280247,588.01,586.9,5.39777355]
[1741491284199,0.31281061,588.0,586.9,5.39777355]
[1741491284492,0.31281061,587.99,586.9,5.39777355]
[1741491284696,0.31281061,588.01,586.9,5.39777355]
[1741491284893,0.31281061,588.0,586.9,5.39777355]
[1741491285100,0.31281061,587.99,586.9,5.39777355]
[1741491285299,0.31281061,587.98,586.9,5.39777355]
[1741491285491,0.31281061,587.97,586.9,5.39777355]
[1741491285692,1.26952077,587.95,586.9,5.39777355]
[1741491285999,0.31280871,587.94,586.9,5.39777355]
[1741491286394,0.29626603,587.93,586.9,5.39777355]
[1741491286898,0.31280871,587.92,586.9,5.39777355]
[1741491287291,0.29626603,587.93,586.9,5.39777355]
[1741491289099,1.26952077,587.99,586.9,5.39777355]
[1741491289298,0.31281475,587.98,586.9,5.39777355]
[1741491289899,0.31281475,587.97,586.9,5.39777355]
[1741491290098,1.26952077,587.99,586.9,5.39777355]
[1741491290299,0.31281466,587.98,586.9,5.39777355]
[1741491290498,0.29626098,587.96,586.9,5.39777355]
[1741491292100,1.26952077,588.06,586.9,5.39777355]
[1741491292300,0.31281506,588.05,586.9,5.39777355]
[1741491293000,0.31281506,588.04,586.9,5.39777355]
[1741491293198,0.31281506,588.06,586.9,5.39777355]
[1741491293396,0.29625089,588.03,586.9,5.39777355]
[1741491293601,0.31281506,588.02,586.9,5.39777355]
[1741491293904,0.29625089,588.03,586.9,5.39777355]
[1741491295206,1.26952077,588.07,586.9,5.39777355]
[1741491296408,0.29623072,588.06,586.9,5.39777355]
[1741491298108,0.340084,588.09,586.9,5.39777355]
[1741491298413,0.29624081,588.05,586.9,5.39777355]
[1741491301209,0.340084,588.09,586.9,5.39777355]
[1741491302313,0.29614375,588.08,586.9,5.39777355]
[1741491304217,0.340084,588.09,586.9,5.39777355]
[1741491305315,0.29617021,588.08,586.9,5.39777355]
[1741491307219,0.340084,588.09,586.9,5.39777355]
[1741491307814,0.29623072,588.08,586.9,5.39777355]
[1741491313128,0.340084,588.09,586.9,5.39777355]
[1741491313831,0.29622063,588.08,586.9,5.39777355]
[1741491315225,0.31285609,588.07,586.9,5.39777355]
[1741491319232,0.31285924,588.06,586.9,5.39777355]
[1741491319429,0.29627485,588.06,586.9,5.39777355]
[1741491319629,0.31285924,588.05,586.9,5.39777355]
[1741491319928,0.29627485,588.06,586.9,5.39777355]
[1741491322229,0.340084,588.09,586.9,5.39777355]
[1741491322430,0.31282537,588.08,586.9,5.39777355]
[1741491323430,0.29625342,588.07,586.9,5.39777355]
[1741491323629,0.31282537,588.06,586.9,5.39777355]
[1741491325430,0.31282537,588.08,586.9,5.39777355]
[1741491325637,0.29625594,588.05,586.9,5.39777355]
[1741491325830,0.31282537,588.04,586.9,5.39777355]
[1741491328436,0.60907122,588.03,586.9,5.39777355]
[1741491328638,0.31282537,588.02,586.9,5.39777355]
[1741491329243,0.29624585,588.03,586.9,5.39777355]
[1741491329437,0.31280268,588.02,586.9,5.39777355]
[1741491331344,0.31280268,588.08,586.9,5.39777355]
[1741491331542,0.29624837,588.01,586.9,5.39777355]
[1741491331744,0.31280268,588.0,586.9,5.39777355]
[1741491331941,0.31280268,588.08,586.9,5.39777355]
[1741491332148,0.340084,588.09,586.9,5.39777355]
[1741491332348,0.31278391,588.08,586.9,5.39777355]
[1741491332549,0.29622568,588.07,586.9,5.39777355]
[1741491332749,0.31278391,588.06,586.9,5.39777355]
[1741491334448,0.31278391,588.05,586.9,5.39777355]
[1741491334645,0.340084,588.09,586.9,5.39777355]
[1741491334845,0.31278158,588.08,586.9,5.39777355]
[1741491335449,0.29622568,588.07,586.9,5.39777355]
[1741491335749,0.31278158,588.06,586.9,5.39777355]
[1741491337345,0.31278158,588.08,586.9,5.39777355]
[1741491337549,0.31278158,588.07,586.9,5.39777355]
[1741491337750,0.31278158,588.06,586.9,5.39777355]
[1741491337950,0.31278158,588.05,586.9,5.39777355]
[1741491338248,0.31278158,588.04,586.9,5.39777355]
[1741491338446,0.29622568,588.05,586.9,5.39777355]
[1741491338751,0.31278158,588.04,586.9,5.39777355]
[1741491339852,0.29622568,588.05,586.9,5.39777355]
[1741491340252,0.340084,588.09,586.9,5.39777355]
[1741491341453,0.60900771,588.08,586.9,5.39777355]
[1741491341748,0.3127896,588.07,586.9,5.39777355]
[1741491343449,0.3127896,588.06,586.9,5.39777355]
[1741491343647,0.3127896,588.08,586.9,5.39777355]
[1741491343852,0.3127896,588.07,586.9,5.39777355]
[1741491344047,0.3127896,588.06,586.9,5.39777355]
[1741491344247,0.3127896,588.05,586.9,5.39777355]
[1741491344450,0.29622568,588.06,586.9,5.39777355]
[1741491344651,0.3127896,588.05,586.9,5.39777355]
[1741491346451,0.3127896,588.08,586.9,5.39777355]
[1741491346652,0.3127896,588.07,586.9,5.39777355]
[1741491346855,0.3127896,588.08,586.9,5.39777355]
[1741491347056,0.3127896,588.07,586.9,5.39777355]
[1741491347351,0.3127896,588.06,586.9,5.39777355]
[1741491349358,0.3127896,588.05,586.9,5.39777355]
[1741491349555,0.3127896,588.08,586.9,5.39777355]
[1741491349756,0.29624585,588.05,586.9,5.39777355]
[1741491349960,0.3127896,588.04,586.9,5.39777355]
[1741491351559,0.31280408,588.03,586.9,5.39777355]
[1741491351758,0.31280408,588.02,586.9,5.39777355]
[1741491351958,0.31280408,588.01,586.9,5.39777355]
[1741491352158,0.340084,588.09,586.9,5.39777355]
[1741491352159,0.31280408,588.04,586.9,5.39777355]
[1741491352359,0.29625089,588.0,586.9,5.39777355]
[1741491352556,0.31280408,587.99,586.9,5.39777355]
[1741491355260,0.31280408,588.01,586.9,5.39777355]
[1741491355462,0.2962572,587.98,586.9,5.39777355]
[1741491355660,0.31280408,587.97,586.9,5.39777355]
[1741491357962,0.2962572,587.98,586.9,5.39777355]
[1741491358168,1.26952077,588.0,586.9,5.39777355]
[1741491358564,0.2962572,587.97,586.9,5.39777355]
[1741491361165,1.26952077,588.01,586.9,5.39777355]
[1741491361565,1.26952077,588.28,586.9,5.39777355]
[1741491361965,0.312764,588.27,586.9,5.39777355]
[1741491362470,0.60895816,588.27,586.9,5.39777355]
[1741491362770,0.312764,588.26,586.9,5.39777355]
[1741491364473,0.312764,588.25,586.9,5.39777355]
[1741491364673,0.312764,588.24,586.9,5.39777355]
[1741491364870,0.312764,588.28,586.9,5.39777355]
[1741491365370,0.2961929,588.27,586.9,5.39777355]
[1741491365571,0.312764,588.26,586.9,5.39777355]
[1741491367278,0.312764,588.25,586.9,5.39777355]
[1741491367474,0.312764,588.24,586.9,5.39777355]
[1741491369482,1.26952077,588.2,586.9,5.39777355]
[1741491369682,0.312764,588.19,586.9,5.39777355]
[1741491371379,0.29619416,588.18,586.9,5.39777355]
[1741491371582,0.312764,588.17,586.9,5.39777355]
[1741491372684,0.31273765,588.16,586.9,5.39777355]
[1741491372881,0.31273765,588.17,586.9,5.39777355]
[1741491373085,0.31273765,588.16,586.9,5.39777355]
[1741491373286,0.31273765,588.17,586.9,5.39777355]
[1741491373486,0.31273765,588.16,586.9,5.39777355]
[1741491373786,0.31273765,588.15,586.9,5.39777355]
[1741491374087,0.31273765,588.14,586.9,5.39777355]
[1741491374280,1.26952077,588.23,586.9,5.39777355]
[1741491374587,0.29619038,588.14,586.9,5.39777355]
[1741491374785,0.3127283,588.13,586.9,5.39777355]
[1741491374985,0.3127283,588.16,586.9,5.39777355]
[1741491375187,0.3127283,588.15,586.9,5.39777355]
[1741491375385,0.3127283,588.16,586.9,5.39777355]
[1741491375688,0.3127283,588.15,586.9,5.39777355]
[1741491375986,0.3127283,588.14,586.9,5.39777355]
[1741491377192,0.29618282,588.15,586.9,5.39777355]
[1741491379086,1.26952077,588.27,586.9,5.39777355]
[1741491379388,0.3126364,588.26,586.9,5.39777355]
[1741491379888,0.31264877,588.25,586.9,5.39777355]
[1741491380086,0.31264877,588.46,586.9,5.39777355]
[1741491380391,0.29612485,588.24,586.9,5.39777355]
[1741491380588,0.31264877,588.23,586.9,5.39777355]
[1741491380790,0.31264877,588.46,586.9,5.39777355]
[1741491380985,1.26952077,588.47,586.9,5.39777355]
[1741491381187,0.31264659,588.46,586.9,5.39777355]
[1741491381890,0.29612485,588.45,586.9,5.39777355]
[1741491382085,0.31264659,588.44,586.9,5.39777355]
[1741491382485,0.31264659,588.43,586.9,5.39777355]
[1741491382689,0.31264659,588.51,586.9,5.39777355]
[1741491382884,0.31264659,588.5,586.9,5.39777355]
[1741491383084,0.31264659,588.51,586.9,5.39777355]
[1741491383285,0.31264659,588.5,586.9,5.39777355]
[1741491383484,0.29611855,588.49,586.9,5.39777355]
[1741491383688,0.31264306,588.48,586.9,5.39777355]
[1741491387097,0.29611855,588.49,586.9,5.39777355]
[1741491387297,0.31263641,588.48,586.9,5.39777355]
[1741491388494,0.29610217,588.47,586.9,5.39777355]
[1741491389001,0.31263641,588.46,586.9,5.39777355]
[1741491390198,0.31263641,588.58,586.9,5.39777355]
[1741491392501,1.26952077,588.59,586.9,5.39777355]
[1741491392706,0.3126447,588.58,586.9,5.39777355]
[1741491393606,1.26952077,588.55,586.9,5.39777355]
[1741491393799,0.3126447,588.54,586.9,5.39777355]
[1741491395501,0.29609965,588.53,586.9,5.39777355]
[1741491395805,0.3126447,588.52,586.9,5.39777355]
[1741491397607,0.3126447,588.51,586.9,5.39777355]
[1741491397801,1.26952077,588.56,586.9,5.39777355]
[1741491397802,0.3126447,588.55,586.9,5.39777355]
[1741491398005,0.3126447,588.54,586.9,5.39777355]
[1741491398205,0.3126447,588.53,586.9,5.39777355]
[1741491398407,0.3126447,588.52,586.9,5.39777355]
[1741491398603,0.3126447,588.51,586.9,5.39777355]
[1741491398807,0.3126447,588.5,586.9,5.39777355]
[1741491399002,0.3126447,588.52,586.9,5.39777355]
[1741491399207,0.3126447,588.51,586.9,5.39777355]
[1741491399408,0.3126447,588.52,586.9,5.39777355]
[1741491403604,0.29609713,588.51,586.9,5.39777355]
[1741491403806,0.3126447,588.5,586.9,5.39777355]
[1741491405205,0.29609713,588.51,586.9,5.39777355]
[1741491405408,0.31263979,588.5,586.9,5.39777355]
[1741491405605,0.29609713,588.51,586.9,5.39777355]
[1741491405809,0.31263947,588.5,586.9,5.39777355]
[1741491406410,0.31263947,588.58,586.9,5.39777355]
[1741491406610,1.26952077,588.46,586.91,1.27617162]
[1741491406813,0.31263947,588.45,586.93,0.34075613]
[1741491407607,0.29610469,588.44,586.93,0.34075613]
[1741491407815,0.31263947,588.43,586.93,0.34075613]
[1741491409015,1.26952077,588.42,586.95,1.27617162]
[1741491409216,0.31263947,588.41,586.97,0.34073291]
[1741491409416,0.31263964,588.4,586.97,0.34073291]
[1741491409618,0.31263964,588.41,586.97,0.34073291]
[1741491409816,0.31263964,588.4,586.97,0.34073291]
[1741491410018,0.31263964,588.39,586.98,4.338]
[1741491410213,0.31263964,588.38,587.0,0.3407155]
[1741491410418,0.31263964,588.37,587.0,0.3407155]
[1741491410717,0.31263964,588.36,587.0,0.3407155]
[1741491410912,0.31263964,588.41,587.0,0.3407155]
[1741491411116,0.31263937,588.4,587.0,0.3407155]
[1741491411517,0.29610721,588.42,587.0,0.3407155]
[1741491411518,0.31263937,588.39,587.0,0.3407155]
[1741491411719,0.31263937,588.41,587.0,0.3407155]
[1741491411917,0.31263937,588.4,587.0,0.3407155]
[1741491412113,0.31263937,588.41,587.0,0.3407155]
[1741491412318,0.31263937,588.4,587.0,0.3407155]
[1741491412621,0.31263937,588.39,587.0,0.3407155]
[1741491412819,1.26952077,588.37,587.0,1.61688712]
[1741491413019,0.31263937,588.36,587.0,1.61688712]
[1741491414919,0.3126395,588.35,587.0,1.61688712]
[1741491415120,0.3126395,588.36,587.0,1.61688712]
[1741491415319,1.26952077,588.37,587.0,1.61688712]
[1741491415320,0.3126395,588.35,587.0,1.61688712]
[1741491415514,0.29610469,588.34,587.01,1.27617162]
[1741491415719,0.3126395,588.33,587.03,0.34069809]
[1741491416618,0.29610469,588.34,587.03,0.34069809]
[1741491421215,1.26952077,588.54,587.03,0.34069809]
[1741491421413,0.31265373,588.53,587.03,0.34069809]
[1741491422421,0.60875716,588.52,587.03,0.34069809]
[1741491422721,0.31265373,588.51,587.03,0.34069809]
[1741491424215,0.31265373,588.51,587.03,1.49769809]
[1741491424414,0.29610595,588.5,587.03,1.49769809]
[1741491424821,0.31265373,588.49,587.03,1.49769809]
[1741491425217,0.31265373,588.49,587.03,2.58269809]
[1741491426426,0.33985861,588.48,587.03,2.58269809]
[1741491426723,1.26952077,588.42,587.03,2.58269809]
[1741491426925,0.31265373,588.41,587.03,2.58269809]
[1741491428425,0.29614249,588.4,587.03,2.58269809]
[1741491428726,0.31265373,588.39,587.03,2.58269809]
[1741491428927,0.31265373,588.38,587.03,2.58269809]
[1741491429428,0.31265373,588.37,587.03,2.58269809]
[1741491429626,0.31265373,588.36,587.03,2.58269809]
[1741491429827,0.31265373,588.35,587.03,2.58269809]
[1741491430127,0.33985861,588.48,587.03,2.58269809]
[1741491430128,0.31265373,588.34,587.03,2.58269809]